[Event "Titled Tuesday Blitz January 10 Late 2023"]
[White "Huber, Benedikt"]
[Black "Rastbod, Ali"]
[WhiteFideId "12923583"]
[BlackFideId "12567477"]
[WhiteElo "2272"]
[BlackElo "2318"]
[Result "1-0"]
[Round "03"]
[TimeControl "180+2"]
[Date "2023.01.10"]
[WhiteClock "0:00:22"]
[BlackClock "0:00:27"]

1. d4 {[%clk 0:00:00]}  g6 {[%clk 0:00:00]} 2. e4 {[%clk 0:03:00]}  Bg7 {[%clk 0:02:39]} 3. Nc3 {[%clk 0:03:00]}  d6 {[%clk 0:02:38]} 4. Nf3 {[%clk 0:02:58]}  Bg4 {[%clk 0:02:38]} 5. Be3 {[%clk 0:02:58]}  e6 {[%clk 0:02:35]} 6. h3 {[%clk 0:02:55]}  Bxf3 {[%clk 0:02:33]} 7. Qxf3 {[%clk 0:02:50]}  h6 {[%clk 0:02:32]} 8. O-O-O {[%clk 0:02:51]}  c6 {[%clk 0:02:32]} 9. e5 {[%clk 0:02:22]}  d5 {[%clk 0:02:29]} 10. Ne2 {[%clk 0:02:19]}  c5 {[%clk 0:02:27]} 11. dxc5 {[%clk 0:02:18]}  Nc6 {[%clk 0:02:26]} 12. Nd4 {[%clk 0:02:17]}  Bxe5 {[%clk 0:02:24]} 13. Bb5 {[%clk 0:02:15]}  Rc8 {[%clk 0:02:18]} 14. Rhe1 {[%clk 0:02:09]}  Qf6 {[%clk 0:02:18]} 15. Qe2 {[%clk 0:02:06]}  Ne7 {[%clk 0:02:18]} 16. Kb1 {[%clk 0:01:58]}  O-O {[%clk 0:02:12]} 17. Bxc6 {[%clk 0:01:52]}  Nxc6 {[%clk 0:02:04]} 18. c3 {[%clk 0:01:52]}  Bxd4 {[%clk 0:02:01]} 19. cxd4 {[%clk 0:01:32]}  Kh7 {[%clk 0:01:51]} 20. Qd2 {[%clk 0:01:07]}  g5 {[%clk 0:01:50]} 21. h4 {[%clk 0:01:07]}  g4 {[%clk 0:01:22]} 22. f3 {[%clk 0:01:03]}  g3 {[%clk 0:01:22]} 23. Ka1 {[%clk 0:01:03]}  a5 {[%clk 0:01:21]} 24. a3 {[%clk 0:00:59]}  a4 {[%clk 0:01:20]} 25. Bf4 {[%clk 0:00:58]}  Rg8 {[%clk 0:01:20]} 26. Bd6 {[%clk 0:00:56]}  Ra8 {[%clk 0:01:17]} 27. Rh1 {[%clk 0:00:36]}  h5 {[%clk 0:01:12]} 28. Rh3 {[%clk 0:00:27]}  Ra5 {[%clk 0:01:03]} 29. Rxg3 {[%clk 0:00:26]}  Rxg3 {[%clk 0:01:01]} 30. Bxg3 {[%clk 0:00:23]}  Rb5 {[%clk 0:00:57]} 31. Qd3+ {[%clk 0:00:24]}  Qg6 {[%clk 0:00:57]} 32. Qxb5 {[%clk 0:00:24]}  Qxg3 {[%clk 0:00:55]} 33. Qxb7 {[%clk 0:00:24]}  Na5 {[%clk 0:00:56]} 34. Qxf7+ {[%clk 0:00:25]}  Kh6 {[%clk 0:00:56]} 35. Qxe6+ {[%clk 0:00:25]}  Kh7 {[%clk 0:00:56]} 36. Qf5+ {[%clk 0:00:24]}  Kh6 {[%clk 0:00:27]} 37. Qg5+ {[%clk 0:00:22]} 1-0


[Site "https://www.chess.com"]

[Event "Titled Tuesday Blitz January 10 Late 2023"]
[White "Lopez Gracia, Fernando"]
[Black "Tica, Sven"]
[WhiteFideId "2207184"]
[BlackFideId "14526948"]
[WhiteElo "2255"]
[BlackElo "2431"]
[Result "1-0"]
[Round "03"]
[TimeControl "180+2"]
[Date "2023.01.10"]
[WhiteClock "0:00:22"]
[BlackClock "0:00:37"]

1. c4 {[%clk 0:00:00]}  g6 {[%clk 0:00:00]} 2. e4 {[%clk 0:03:00]}  Bg7 {[%clk 0:03:00]} 3. d4 {[%clk 0:03:00]}  d6 {[%clk 0:03:00]} 4. Nc3 {[%clk 0:03:00]}  Nd7 {[%clk 0:03:00]} 5. Nf3 {[%clk 0:03:01]}  e5 {[%clk 0:03:01]} 6. d5 {[%clk 0:03:00]}  Ne7 {[%clk 0:03:01]} 7. h4 {[%clk 0:02:59]}  h6 {[%clk 0:03:01]} 8. h5 {[%clk 0:02:58]}  g5 {[%clk 0:03:01]} 9. Be3 {[%clk 0:02:54]}  f5 {[%clk 0:03:01]} 10. exf5 {[%clk 0:02:52]}  Nxf5 {[%clk 0:03:01]} 11. Bd3 {[%clk 0:02:51]}  Nf6 {[%clk 0:03:02]} 12. Qc2 {[%clk 0:02:49]}  Nxe3 {[%clk 0:03:01]} 13. Bg6+ {[%clk 0:02:47]}  Ke7 {[%clk 0:02:41]} 14. fxe3 {[%clk 0:02:46]}  Bg4 {[%clk 0:02:41]} 15. O-O-O {[%clk 0:02:46]}  Qd7 {[%clk 0:02:42]} 16. Rdf1 {[%clk 0:02:35]}  Raf8 {[%clk 0:02:40]} 17. Nd2 {[%clk 0:02:32]}  c6 {[%clk 0:02:38]} 18. Nde4 {[%clk 0:02:16]}  Nxe4 {[%clk 0:02:21]} 19. Qxe4 {[%clk 0:02:14]}  Rxf1+ {[%clk 0:02:21]} 20. Rxf1 {[%clk 0:02:13]}  Rf8 {[%clk 0:02:15]} 21. Rxf8 {[%clk 0:02:12]}  Kxf8 {[%clk 0:02:15]} 22. b4 {[%clk 0:02:08]}  cxd5 {[%clk 0:02:16]} 23. Nxd5 {[%clk 0:01:53]}  Be6 {[%clk 0:02:01]} 24. Nc3 {[%clk 0:01:41]}  Qc8 {[%clk 0:02:02]} 25. Nd5 {[%clk 0:01:25]}  b5 {[%clk 0:01:58]} 26. Kd2 {[%clk 0:01:14]}  Qxc4 {[%clk 0:01:55]} 27. Qxc4 {[%clk 0:00:43]}  bxc4 {[%clk 0:01:31]} 28. e4 {[%clk 0:00:41]}  Bd7 {[%clk 0:01:32]} 29. Kc3 {[%clk 0:00:38]}  Bb5 {[%clk 0:01:08]} 30. Nc7 {[%clk 0:00:38]}  Bc6 {[%clk 0:01:07]} 31. Kxc4 {[%clk 0:00:39]}  Bf6 {[%clk 0:01:07]} 32. Ne6+ {[%clk 0:00:36]}  Ke7 {[%clk 0:01:07]} 33. Nc7 {[%clk 0:00:35]}  Kd7 {[%clk 0:01:06]} 34. Nd5 {[%clk 0:00:32]}  Bd8 {[%clk 0:01:07]} 35. Bf5+ {[%clk 0:00:32]}  Ke8 {[%clk 0:01:07]} 36. b5 {[%clk 0:00:31]}  Bb7 {[%clk 0:01:06]} 37. a4 {[%clk 0:00:32]}  a5 {[%clk 0:01:06]} 38. Ne3 {[%clk 0:00:31]}  Bb6 {[%clk 0:01:03]} 39. Ng4 {[%clk 0:00:29]}  Ke7 {[%clk 0:01:02]} 40. Nxh6 {[%clk 0:00:29]}  d5+ {[%clk 0:00:38]} 41. exd5 {[%clk 0:00:29]}  Kd6 {[%clk 0:00:38]} 42. Be4 {[%clk 0:00:29]}  Bc8 {[%clk 0:00:38]} 43. Nf7+ {[%clk 0:00:27]}  Ke7 {[%clk 0:00:37]} 44. Nxe5 {[%clk 0:00:25]}  Bc7 {[%clk 0:00:37]} 45. Ng6+ {[%clk 0:00:25]}  Kf6 {[%clk 0:00:37]} 46. h6 {[%clk 0:00:22]} 1-0


[Site "https://www.chess.com"]

[Event "Titled Tuesday Blitz January 10 Late 2023"]
[White "Szyszylo, Rafal"]
[Black "Zheng, Richard"]
[WhiteFideId "1109626"]
[BlackFideId "2624893"]
[WhiteElo "2091"]
[BlackElo "2121"]
[Result "0-1"]
[Round "03"]
[TimeControl "180+2"]
[Date "2023.01.10"]
[WhiteClock "0:01:43"]
[BlackClock "0:02:05"]

1. e4 {[%clk 0:00:00]}  c6 {[%clk 0:00:00]} 2. d4 {[%clk 0:03:00]}  d5 {[%clk 0:02:49]} 3. e5 {[%clk 0:03:00]}  Bf5 {[%clk 0:02:50]} 4. Nf3 {[%clk 0:03:00]}  e6 {[%clk 0:02:49]} 5. Be2 {[%clk 0:03:00]}  Ne7 {[%clk 0:02:50]} 6. O-O {[%clk 0:02:59]}  c5 {[%clk 0:02:50]} 7. Be3 {[%clk 0:02:58]}  Nec6 {[%clk 0:02:50]} 8. c3 {[%clk 0:02:56]}  Nd7 {[%clk 0:02:47]} 9. h3 {[%clk 0:02:55]}  h6 {[%clk 0:02:44]} 10. g4 {[%clk 0:02:48]}  Bh7 {[%clk 0:02:44]} 11. Nh2 {[%clk 0:02:46]}  Qb6 {[%clk 0:02:43]} 12. Qd2 {[%clk 0:02:46]}  a6 {[%clk 0:02:41]} 13. f4 {[%clk 0:02:35]}  Be4 {[%clk 0:02:27]} 14. Nf3 {[%clk 0:02:34]}  Be7 {[%clk 0:02:21]} 15. Bd3 {[%clk 0:02:25]}  Bxf3 {[%clk 0:02:16]} 16. Rxf3 {[%clk 0:02:22]}  cxd4 {[%clk 0:02:12]} 17. cxd4 {[%clk 0:02:22]}  Nxd4 {[%clk 0:02:13]} 18. Kg2 {[%clk 0:02:19]}  Nxf3 {[%clk 0:02:14]} 19. Kxf3 {[%clk 0:01:56]}  Bc5 {[%clk 0:02:08]} 20. Bxc5 {[%clk 0:01:53]}  Nxc5 {[%clk 0:02:06]} 21. Be2 {[%clk 0:01:50]}  Ne4 {[%clk 0:02:07]} 22. Qc2 {[%clk 0:01:43]}  Qf2# {[%clk 0:02:05]} 0-1


[Site "https://www.chess.com"]

[Event "Titled Tuesday Blitz January 10 Late 2023"]
[White "Bon, Michael"]
[Black "Ismagilov, Damir"]
[WhiteFideId "620696"]
[BlackFideId "34199982"]
[WhiteElo "2394"]
[BlackElo "2156"]
[Result "0-1"]
[Round "03"]
[TimeControl "180+2"]
[Date "2023.01.10"]
[WhiteClock "0:00:03"]
[BlackClock "0:00:45"]

1. e4 {[%clk 0:00:00]}  d6 {[%clk 0:00:00]} 2. d4 {[%clk 0:02:57]}  e5 {[%clk 0:02:58]} 3. Nc3 {[%clk 0:02:57]}  Nf6 {[%clk 0:02:59]} 4. Nf3 {[%clk 0:02:56]}  exd4 {[%clk 0:02:51]} 5. Nxd4 {[%clk 0:02:54]}  Be7 {[%clk 0:02:50]} 6. Be2 {[%clk 0:02:43]}  O-O {[%clk 0:02:50]} 7. O-O {[%clk 0:02:43]}  Bd7 {[%clk 0:02:50]} 8. Be3 {[%clk 0:02:43]}  Nc6 {[%clk 0:02:47]} 9. f4 {[%clk 0:02:33]}  Re8 {[%clk 0:02:47]} 10. Bf3 {[%clk 0:02:32]}  Nxd4 {[%clk 0:02:46]} 11. Bxd4 {[%clk 0:02:32]}  Bc6 {[%clk 0:02:33]} 12. Qd3 {[%clk 0:02:13]}  Qd7 {[%clk 0:02:33]} 13. Rae1 {[%clk 0:01:59]}  Rad8 {[%clk 0:02:22]} 14. h3 {[%clk 0:01:55]}  Qc8 {[%clk 0:02:20]} 15. g4 {[%clk 0:01:48]}  Nd7 {[%clk 0:02:09]} 16. g5 {[%clk 0:01:40]}  Nc5 {[%clk 0:02:03]} 17. Qe3 {[%clk 0:01:37]}  Qxh3 {[%clk 0:02:01]} 18. Rf2 {[%clk 0:01:20]}  Ne6 {[%clk 0:01:58]} 19. Bg2 {[%clk 0:01:17]}  Qxe3 {[%clk 0:01:48]} 20. Bxe3 {[%clk 0:00:49]}  f6 {[%clk 0:01:35]} 21. Bh3 {[%clk 0:00:48]}  Nc5 {[%clk 0:01:26]} 22. Bxc5 {[%clk 0:00:30]}  dxc5 {[%clk 0:01:26]} 23. Be6+ {[%clk 0:00:26]}  Kh8 {[%clk 0:01:25]} 24. g6 {[%clk 0:00:27]}  h6 {[%clk 0:01:14]} 25. Nd5 {[%clk 0:00:26]}  Bd6 {[%clk 0:01:11]} 26. f5 {[%clk 0:00:23]}  Bd7 {[%clk 0:01:04]} 27. Bf7 {[%clk 0:00:20]}  Bg3 {[%clk 0:01:02]} 28. Bxe8 {[%clk 0:00:10]}  Rxe8 {[%clk 0:00:57]} 29. Nxc7 {[%clk 0:00:08]}  Bxc7 {[%clk 0:00:51]} 30. Rd2 {[%clk 0:00:07]}  Bc6 {[%clk 0:00:50]} 31. Kf2 {[%clk 0:00:05]}  Kg8 {[%clk 0:00:50]} 32. Kf3 {[%clk 0:00:03]}  Re5 {[%clk 0:00:45]} 0-1


[Site "https://www.chess.com"]

[Event "Titled Tuesday Blitz January 10 Late 2023"]
[White "Bozorov, Makhsum"]
[Black "Czernek, Tymon"]
[WhiteFideId "14201330"]
[BlackFideId "1199510"]
[WhiteElo "2145"]
[BlackElo "2314"]
[Result "1-0"]
[Round "03"]
[TimeControl "180+2"]
[Date "2023.01.10"]
[WhiteClock "0:00:25"]
[BlackClock "0:01:20"]

1. d4 {[%clk 0:00:00]}  d5 {[%clk 0:00:00]} 2. c4 {[%clk 0:03:00]}  e6 {[%clk 0:02:54]} 3. Nf3 {[%clk 0:03:01]}  Nf6 {[%clk 0:02:55]} 4. g3 {[%clk 0:03:01]}  Bb4+ {[%clk 0:02:55]} 5. Bd2 {[%clk 0:03:01]}  Bxd2+ {[%clk 0:02:39]} 6. Nbxd2 {[%clk 0:03:01]}  O-O {[%clk 0:02:38]} 7. Bg2 {[%clk 0:02:59]}  b6 {[%clk 0:02:39]} 8. cxd5 {[%clk 0:02:59]}  exd5 {[%clk 0:02:38]} 9. O-O {[%clk 0:02:57]}  Bb7 {[%clk 0:02:37]} 10. Rc1 {[%clk 0:02:57]}  Nbd7 {[%clk 0:02:37]} 11. Qc2 {[%clk 0:02:54]}  c5 {[%clk 0:02:37]} 12. Rfd1 {[%clk 0:02:50]}  Rc8 {[%clk 0:02:37]} 13. Qf5 {[%clk 0:02:49]}  g6 {[%clk 0:02:35]} 14. Qh3 {[%clk 0:02:49]}  c4 {[%clk 0:02:30]} 15. Ne5 {[%clk 0:02:48]}  Re8 {[%clk 0:02:27]} 16. Nxd7 {[%clk 0:02:44]}  Qxd7 {[%clk 0:02:20]} 17. Qxd7 {[%clk 0:02:37]}  Nxd7 {[%clk 0:02:20]} 18. e4 {[%clk 0:02:33]}  dxe4 {[%clk 0:02:21]} 19. Nxc4 {[%clk 0:02:25]}  Bd5 {[%clk 0:02:07]} 20. Nd6 {[%clk 0:02:26]}  Rxc1 {[%clk 0:02:07]} 21. Rxc1 {[%clk 0:02:19]}  Re6 {[%clk 0:02:05]} 22. Nb5 {[%clk 0:02:20]}  Bxa2 {[%clk 0:02:05]} 23. Rc7 {[%clk 0:01:47]}  Nf6 {[%clk 0:02:04]} 24. Rxa7 {[%clk 0:01:38]}  Rc6 {[%clk 0:01:58]} 25. Rxa2 {[%clk 0:01:38]}  Rc1+ {[%clk 0:01:56]} 26. Bf1 {[%clk 0:01:32]}  Nd5 {[%clk 0:01:54]} 27. Kg2 {[%clk 0:01:32]}  e3 {[%clk 0:01:54]} 28. Nc3 {[%clk 0:01:22]}  Nb4 {[%clk 0:01:53]} 29. Ra8+ {[%clk 0:01:14]}  Kg7 {[%clk 0:01:46]} 30. fxe3 {[%clk 0:01:10]}  Rc2+ {[%clk 0:01:45]} 31. Kg1 {[%clk 0:01:10]}  Rxb2 {[%clk 0:01:45]} 32. Ne4 {[%clk 0:01:05]}  Nc2 {[%clk 0:01:46]} 33. Nd6 {[%clk 0:01:03]}  Nxe3 {[%clk 0:01:43]} 34. Nc4 {[%clk 0:00:47]}  Nxc4 {[%clk 0:01:42]} 35. Bxc4 {[%clk 0:00:48]}  b5 {[%clk 0:01:38]} 36. Rb8 {[%clk 0:00:49]}  Rd2 {[%clk 0:01:38]} 37. Rxb5 {[%clk 0:00:41]}  Rxd4 {[%clk 0:01:36]} 38. Rc5 {[%clk 0:00:35]}  h5 {[%clk 0:01:36]} 39. Rc7 {[%clk 0:00:36]}  h4 {[%clk 0:01:35]} 40. Bxf7 {[%clk 0:00:35]}  Kf6 {[%clk 0:01:25]} 41. Kg2 {[%clk 0:00:34]}  hxg3 {[%clk 0:01:24]} 42. hxg3 {[%clk 0:00:27]}  g5 {[%clk 0:01:23]} 43. Bc4 {[%clk 0:00:27]}  g4 {[%clk 0:01:22]} 44. Be2 {[%clk 0:00:26]}  Kf5 {[%clk 0:01:20]} 45. Kf2 {[%clk 0:00:25]} 1-0


[Site "https://www.chess.com"]

[Event "Titled Tuesday Blitz January 10 Late 2023"]
[White "Averjanov, Alexey"]
[Black "Becerra, Juan David"]
[WhiteFideId "14109867"]
[BlackFideId "4404998"]
[WhiteElo "2399"]
[BlackElo "2382"]
[Result "1-0"]
[Round "03"]
[TimeControl "180+2"]
[Date "2023.01.10"]
[WhiteClock "0:01:52"]
[BlackClock "0:00:16"]

1. d4 {[%clk 0:00:00]}  d5 {[%clk 0:00:00]} 2. c4 {[%clk 0:03:00]}  e6 {[%clk 0:02:59]} 3. Nf3 {[%clk 0:03:01]}  c6 {[%clk 0:03:00]} 4. e3 {[%clk 0:03:00]}  Nf6 {[%clk 0:02:59]} 5. Nbd2 {[%clk 0:03:00]}  Nbd7 {[%clk 0:02:59]} 6. Bd3 {[%clk 0:02:59]}  Bd6 {[%clk 0:02:59]} 7. O-O {[%clk 0:02:59]}  O-O {[%clk 0:02:54]} 8. e4 {[%clk 0:02:59]}  dxe4 {[%clk 0:02:53]} 9. Nxe4 {[%clk 0:02:59]}  Nxe4 {[%clk 0:02:52]} 10. Bxe4 {[%clk 0:03:00]}  h6 {[%clk 0:02:53]} 11. Bc2 {[%clk 0:03:01]}  b6 {[%clk 0:02:52]} 12. Re1 {[%clk 0:02:59]}  a5 {[%clk 0:02:38]} 13. b3 {[%clk 0:02:57]}  Ba6 {[%clk 0:02:38]} 14. Bb2 {[%clk 0:02:57]}  Re8 {[%clk 0:02:35]} 15. Qd3 {[%clk 0:02:57]}  Nf8 {[%clk 0:02:32]} 16. Rad1 {[%clk 0:02:57]}  Qd7 {[%clk 0:02:31]} 17. Ne5 {[%clk 0:02:56]}  Bxe5 {[%clk 0:02:16]} 18. Rxe5 {[%clk 0:02:55]}  Rad8 {[%clk 0:02:15]} 19. Qg3 {[%clk 0:02:55]}  c5 {[%clk 0:02:12]} 20. d5 {[%clk 0:02:49]}  f6 {[%clk 0:01:42]} 21. Ree1 {[%clk 0:02:42]}  exd5 {[%clk 0:01:32]} 22. Bxf6 {[%clk 0:02:36]}  Rxe1+ {[%clk 0:01:31]} 23. Rxe1 {[%clk 0:02:30]}  dxc4 {[%clk 0:01:07]} 24. h3 {[%clk 0:02:30]}  g5 {[%clk 0:00:57]} 25. Re7 {[%clk 0:02:11]}  Qd6 {[%clk 0:00:19]} 26. Rg7+ {[%clk 0:02:00]}  Kh8 {[%clk 0:00:16]} 27. Rg6+ {[%clk 0:01:59]}  Kh7 {[%clk 0:00:16]} 28. Rxh6+ {[%clk 0:01:52]}  Kxh6 {[%clk 0:00:16]} 29. Qxg5# {[%clk 0:01:52]} 1-0


[Site "https://www.chess.com"]

[Event "Titled Tuesday Blitz January 10 Late 2023"]
[White "Haszon, David"]
[Black "Souleidis, Georgios"]
[WhiteFideId "733610"]
[BlackFideId "4206827"]
[WhiteElo "2264"]
[BlackElo "2419"]
[Result "1-0"]
[Round "03"]
[TimeControl "180+2"]
[Date "2023.01.10"]
[WhiteClock "0:00:05"]
[BlackClock "0:00:07"]

1. d4 {[%clk 0:00:00]}  Nf6 {[%clk 0:00:00]} 2. Bf4 {[%clk 0:03:00]}  g6 {[%clk 0:02:57]} 3. Nc3 {[%clk 0:03:01]}  d5 {[%clk 0:02:55]} 4. e3 {[%clk 0:03:00]}  Bg7 {[%clk 0:02:55]} 5. h4 {[%clk 0:02:49]}  O-O {[%clk 0:02:55]} 6. Be2 {[%clk 0:02:48]}  c5 {[%clk 0:02:54]} 7. h5 {[%clk 0:02:44]}  Nc6 {[%clk 0:02:54]} 8. h6 {[%clk 0:02:43]}  Bh8 {[%clk 0:02:53]} 9. Nf3 {[%clk 0:02:36]}  cxd4 {[%clk 0:02:52]} 10. Nxd4 {[%clk 0:02:35]}  Qb6 {[%clk 0:02:46]} 11. Nxc6 {[%clk 0:02:30]}  bxc6 {[%clk 0:02:36]} 12. Na4 {[%clk 0:02:16]}  Qa5+ {[%clk 0:02:36]} 13. c3 {[%clk 0:01:37]}  Nd7 {[%clk 0:02:35]} 14. b4 {[%clk 0:01:37]}  Qd8 {[%clk 0:02:23]} 15. Bg5 {[%clk 0:01:27]}  a5 {[%clk 0:02:23]} 16. Rc1 {[%clk 0:01:12]}  Re8 {[%clk 0:02:14]} 17. O-O {[%clk 0:01:00]}  Qc7 {[%clk 0:02:06]} 18. c4 {[%clk 0:00:59]}  axb4 {[%clk 0:02:02]} 19. cxd5 {[%clk 0:00:55]}  Qa7 {[%clk 0:01:37]} 20. dxc6 {[%clk 0:00:55]}  Qxa4 {[%clk 0:01:37]} 21. cxd7 {[%clk 0:00:47]}  Qxd7 {[%clk 0:01:23]} 22. Qb3 {[%clk 0:00:47]}  Qf5 {[%clk 0:01:19]} 23. Bf4 {[%clk 0:00:42]}  Bc3 {[%clk 0:01:13]} 24. Bc4 {[%clk 0:00:31]}  Be6 {[%clk 0:01:09]} 25. Bxe6 {[%clk 0:00:21]}  Qxe6 {[%clk 0:01:08]} 26. Qxe6 {[%clk 0:00:19]}  fxe6 {[%clk 0:01:09]} 27. Rc2 {[%clk 0:00:19]}  Ra3 {[%clk 0:01:10]} 28. e4 {[%clk 0:00:19]}  Rea8 {[%clk 0:01:01]} 29. Rd1 {[%clk 0:00:20]}  Rxa2 {[%clk 0:01:00]} 30. Rcc1 {[%clk 0:00:15]}  Ra1 {[%clk 0:00:55]} 31. Kf1 {[%clk 0:00:11]}  Rxc1 {[%clk 0:00:37]} 32. Rxc1 {[%clk 0:00:07]}  Ra2 {[%clk 0:00:36]} 33. Rb1 {[%clk 0:00:06]}  e5 {[%clk 0:00:32]} 34. Be3 {[%clk 0:00:05]}  Kf7 {[%clk 0:00:26]} 35. Bc5 {[%clk 0:00:05]}  Ra4 {[%clk 0:00:26]} 36. Ke2 {[%clk 0:00:05]}  g5 {[%clk 0:00:24]} 37. Kd3 {[%clk 0:00:05]}  Ra2 {[%clk 0:00:23]} 38. Rf1 {[%clk 0:00:05]}  Kg6 {[%clk 0:00:17]} 39. g3 {[%clk 0:00:05]}  e6 {[%clk 0:00:14]} 40. f4 {[%clk 0:00:05]}  gxf4 {[%clk 0:00:14]} 41. gxf4 {[%clk 0:00:05]}  exf4 {[%clk 0:00:14]} 42. Rxf4 {[%clk 0:00:06]}  Kxh6 {[%clk 0:00:14]} 43. Rf1 {[%clk 0:00:07]}  Kg6 {[%clk 0:00:14]} 44. Rg1+ {[%clk 0:00:06]}  Kf7 {[%clk 0:00:14]} 45. Rf1+ {[%clk 0:00:06]}  Ke8 {[%clk 0:00:15]} 46. Rf8+ {[%clk 0:00:07]}  Kd7 {[%clk 0:00:14]} 47. Rf7+ {[%clk 0:00:07]}  Kc6 {[%clk 0:00:14]} 48. Kc4 {[%clk 0:00:08]}  Rh2 {[%clk 0:00:14]} 49. Re7 {[%clk 0:00:09]}  Rh6 {[%clk 0:00:12]} 50. Be3 {[%clk 0:00:07]}  Rg6 {[%clk 0:00:11]} 51. Rxh7 {[%clk 0:00:06]}  e5 {[%clk 0:00:10]} 52. Bc5 {[%clk 0:00:05]}  Rg4 {[%clk 0:00:10]} 53. Rh6+ {[%clk 0:00:05]}  Kd7 {[%clk 0:00:09]} 54. Kd5 {[%clk 0:00:04]}  b3 {[%clk 0:00:09]} 55. Rh7+ {[%clk 0:00:04]}  Kc8 {[%clk 0:00:09]} 56. Kc6 {[%clk 0:00:05]}  Rg8 {[%clk 0:00:09]} 57. Bd6 {[%clk 0:00:05]}  Ba5 {[%clk 0:00:07]} 58. Ra7 {[%clk 0:00:05]} 1-0


[Site "https://www.chess.com"]

[Event "Titled Tuesday Blitz January 10 Late 2023"]
[White "Korchmar, Vasiliy"]
[Black "Boder, Jan"]
[WhiteFideId "24131750"]
[BlackFideId "16243226"]
[WhiteElo "2438"]
[BlackElo "2294"]
[Result "1/2-1/2"]
[Round "03"]
[TimeControl "180+2"]
[Date "2023.01.10"]
[WhiteClock "0:00:01"]
[BlackClock "0:00:01"]

1. e4 {[%clk 0:00:00]}  c5 {[%clk 0:00:00]} 2. Nf3 {[%clk 0:03:00]}  Nc6 {[%clk 0:02:58]} 3. d4 {[%clk 0:03:00]}  cxd4 {[%clk 0:02:59]} 4. Nxd4 {[%clk 0:03:00]}  g6 {[%clk 0:03:00]} 5. c4 {[%clk 0:03:00]}  Nf6 {[%clk 0:03:00]} 6. Nc3 {[%clk 0:02:59]}  Nxd4 {[%clk 0:03:00]} 7. Qxd4 {[%clk 0:02:57]}  Bg7 {[%clk 0:03:00]} 8. Be2 {[%clk 0:02:57]}  d6 {[%clk 0:03:01]} 9. O-O {[%clk 0:02:33]}  O-O {[%clk 0:03:00]} 10. Qd3 {[%clk 0:02:29]}  Be6 {[%clk 0:03:00]} 11. Be3 {[%clk 0:02:30]}  Rc8 {[%clk 0:02:59]} 12. b3 {[%clk 0:02:23]}  a6 {[%clk 0:02:59]} 13. Rac1 {[%clk 0:02:23]}  Qa5 {[%clk 0:02:59]} 14. f4 {[%clk 0:02:18]}  b5 {[%clk 0:02:59]} 15. cxb5 {[%clk 0:02:11]}  axb5 {[%clk 0:02:59]} 16. Nxb5 {[%clk 0:02:00]}  Qxa2 {[%clk 0:02:59]} 17. Nd4 {[%clk 0:01:10]}  Bg4 {[%clk 0:02:49]} 18. Nf3 {[%clk 0:01:07]}  Nxe4 {[%clk 0:02:14]} 19. Rxc8 {[%clk 0:00:51]}  Rxc8 {[%clk 0:01:53]} 20. Bd1 {[%clk 0:00:39]}  Nc5 {[%clk 0:01:51]} 21. Qb5 {[%clk 0:00:25]}  Qa6 {[%clk 0:01:43]} 22. Qxa6 {[%clk 0:00:21]}  Nxa6 {[%clk 0:01:35]} 23. h3 {[%clk 0:00:20]}  Bxf3 {[%clk 0:01:36]} 24. Bxf3 {[%clk 0:00:15]}  Rb8 {[%clk 0:01:31]} 25. Rb1 {[%clk 0:00:14]}  Nc5 {[%clk 0:01:31]} 26. b4 {[%clk 0:00:12]}  Na4 {[%clk 0:01:31]} 27. Rb3 {[%clk 0:00:12]}  e6 {[%clk 0:01:26]} 28. b5 {[%clk 0:00:11]}  d5 {[%clk 0:01:19]} 29. Ba7 {[%clk 0:00:11]}  Rb7 {[%clk 0:01:18]} 30. Be3 {[%clk 0:00:05]}  Rb8 {[%clk 0:01:14]} 31. Be2 {[%clk 0:00:05]}  d4 {[%clk 0:01:09]} 32. Bf2 {[%clk 0:00:05]}  Nc3 {[%clk 0:01:06]} 33. Bf1 {[%clk 0:00:05]}  Kf8 {[%clk 0:01:06]} 34. b6 {[%clk 0:00:04]}  Ke7 {[%clk 0:01:00]} 35. b7 {[%clk 0:00:04]}  Kd7 {[%clk 0:01:01]} 36. Ba6 {[%clk 0:00:04]}  Kc7 {[%clk 0:00:56]} 37. Rb4 {[%clk 0:00:03]}  Nd5 {[%clk 0:00:55]} 38. Rc4+ {[%clk 0:00:03]}  Kb6 {[%clk 0:00:49]} 39. Rc8 {[%clk 0:00:03]}  Ka7 {[%clk 0:00:50]} 40. Kf1 {[%clk 0:00:02]}  e5 {[%clk 0:00:50]} 41. fxe5 {[%clk 0:00:01]}  Bxe5 {[%clk 0:00:35]} 42. Ke2 {[%clk 0:00:01]}  Kxa6 {[%clk 0:00:36]} 43. Rc5 {[%clk 0:00:02]}  Nc3+ {[%clk 0:00:35]} 44. Kd3 {[%clk 0:00:02]}  Bg7 {[%clk 0:00:31]} 45. Bxd4 {[%clk 0:00:02]}  Bxd4 {[%clk 0:00:31]} 46. Kxd4 {[%clk 0:00:02]}  Nb5+ {[%clk 0:00:32]} 47. Ke5 {[%clk 0:00:03]}  Rxb7 {[%clk 0:00:31]} 48. Kf6 {[%clk 0:00:03]}  Kb6 {[%clk 0:00:31]} 49. Rc8 {[%clk 0:00:03]}  Nd6 {[%clk 0:00:26]} 50. Rh8 {[%clk 0:00:02]}  h5 {[%clk 0:00:24]} 51. Rh7 {[%clk 0:00:02]}  Kc5 {[%clk 0:00:24]} 52. g4 {[%clk 0:00:02]}  hxg4 {[%clk 0:00:24]} 53. hxg4 {[%clk 0:00:02]}  Kd5 {[%clk 0:00:24]} 54. g5 {[%clk 0:00:02]}  Ne4+ {[%clk 0:00:24]} 55. Kg7 {[%clk 0:00:03]}  Nxg5 {[%clk 0:00:25]} 56. Rh1 {[%clk 0:00:03]}  Ne6+ {[%clk 0:00:25]} 57. Kf6 {[%clk 0:00:03]}  Nd4 {[%clk 0:00:25]} 58. Rd1 {[%clk 0:00:04]}  Rd7 {[%clk 0:00:24]} 59. Rd2 {[%clk 0:00:04]}  Rd6+ {[%clk 0:00:21]} 60. Ke7 {[%clk 0:00:03]}  g5 {[%clk 0:00:21]} 61. Kxf7 {[%clk 0:00:02]}  g4 {[%clk 0:00:18]} 62. Rg2 {[%clk 0:00:03]}  Rd7+ {[%clk 0:00:17]} 63. Kf6 {[%clk 0:00:03]}  Rd6+ {[%clk 0:00:15]} 64. Kg5 {[%clk 0:00:02]}  Rd8 {[%clk 0:00:07]} 65. Kxg4 {[%clk 0:00:03]}  Rg8+ {[%clk 0:00:06]} 66. Kh3 {[%clk 0:00:02]}  Rh8+ {[%clk 0:00:05]} 67. Kg3 {[%clk 0:00:02]}  Ke4 {[%clk 0:00:06]} 68. Ra2 {[%clk 0:00:02]}  Rg8+ {[%clk 0:00:06]} 69. Kh3 {[%clk 0:00:02]}  Kf4 {[%clk 0:00:07]} 70. Ra4 {[%clk 0:00:02]}  Rh8+ {[%clk 0:00:05]} 71. Kg2 {[%clk 0:00:01]}  Ke3 {[%clk 0:00:05]} 72. Ra3+ {[%clk 0:00:02]}  Ke4 {[%clk 0:00:05]} 73. Ra4 {[%clk 0:00:01]}  Rg8+ {[%clk 0:00:06]} 74. Kh3 {[%clk 0:00:02]}  Rg7 {[%clk 0:00:06]} 75. Rb4 {[%clk 0:00:03]}  Ke3 {[%clk 0:00:06]} 76. Ra4 {[%clk 0:00:03]}  Nc6 {[%clk 0:00:07]} 77. Ra3+ {[%clk 0:00:03]}  Kf4 {[%clk 0:00:04]} 78. Ra4+ {[%clk 0:00:03]}  Kf5 {[%clk 0:00:04]} 79. Ra3 {[%clk 0:00:03]}  Ne5 {[%clk 0:00:05]} 80. Ra5 {[%clk 0:00:03]}  Kf4 {[%clk 0:00:05]} 81. Ra4+ {[%clk 0:00:02]}  Kf5 {[%clk 0:00:05]} 82. Ra5 {[%clk 0:00:03]}  Rg8 {[%clk 0:00:06]} 83. Rb5 {[%clk 0:00:03]}  Ke4 {[%clk 0:00:06]} 84. Ra5 {[%clk 0:00:03]}  Nc4 {[%clk 0:00:04]} 85. Ra4 {[%clk 0:00:03]}  Kf3 {[%clk 0:00:03]} 86. Kh2 {[%clk 0:00:03]}  Ne3 {[%clk 0:00:03]} 87. Ra3 {[%clk 0:00:02]}  Rh8+ {[%clk 0:00:03]} 88. Kg1 {[%clk 0:00:02]}  Rh6 {[%clk 0:00:03]} 89. Rb3 {[%clk 0:00:02]}  Rg6+ {[%clk 0:00:03]} 90. Kh2 {[%clk 0:00:02]}  Rg8 {[%clk 0:00:04]} 91. Ra3 {[%clk 0:00:02]}  Kf2 {[%clk 0:00:03]} 92. Ra2+ {[%clk 0:00:02]}  Kf3 {[%clk 0:00:01]} 93. Ra3 {[%clk 0:00:01]} 1/2-1/2


[Site "https://www.chess.com"]